bitfinex/quotes_ETHUSD_20260107
["timestamp","ask_amount","ask_price","bid_price","bid_amount"]
[1767817802798,0.90682856,3135.4,3134.7,0.837]
[1767817803062,0.90682856,3135.4,3134.3,3.19042813]
[1767817803063,0.90682856,3135.4,3134.4,3.19033692]
[1767817803376,0.90682856,3135.4,3134.4,0.93354451]
[1767817803540,4.09643464,3135.2,3134.4,0.93354451]
[1767817803869,0.72864537,3135.3,3134.5,0.93354451]
[1767817804050,0.001,3135.5,3134.5,0.93354451]
[1767817804369,3.19029369,3135.5,3134.5,0.93354451]
[1767817804542,0.90682856,3135.4,3134.5,0.93354451]
[1767817804876,0.90682856,3135.4,3132.6,2.00600757]
[1767817804877,0.90682856,3135.4,3133.7,0.93354451]
[1767817805040,0.90682856,3135.4,3133.9,1.77054451]
[1767817805365,9.56888107,3135.5,3134.2,0.93354451]
[1767817805366,0.90682856,3135.2,3134.2,0.93354451]
[1767817805569,1.04757096,3135.3,3134.2,0.93354451]
[1767817805747,4.23709154,3135.3,3134.4,0.93354451]
[1767817806122,0.90682856,3135.2,3134.4,0.93354451]
[1767817806358,0.90682856,3135.2,3134.2,0.837]
[1767817806624,0.90682856,3135.0,3134.2,4.02758824]
[1767817806826,0.90682856,3135.0,3134.2,4.96113275]
[1767817807028,0.90682856,3135.0,3134.2,1.77054451]
[1767817807634,3.18989441,3134.9,3134.2,1.77054451]
[1767817807833,3.18989441,3134.9,3134.0,3.19077951]
[1767817807834,0.90682856,3134.8,3134.1,0.837]
[1767817808073,0.90682856,3134.7,3134.1,0.837]
[1767817809075,0.90682856,3134.7,3134.0,0.93354451]
[1767817809367,0.90682856,3134.7,3133.8,0.93354451]
[1767817809556,0.90682856,3134.7,3133.5,4.02822943]
[1767817809763,0.90682856,3134.5,3133.6,3.19116158]
[1767817809946,1.31653139,3134.4,3133.6,4.12470609]
[1767817810366,0.90682856,3134.3,3133.6,0.93354451]
[1767817811891,0.90682856,3134.2,3133.1,0.93354451]
[1767817812256,0.90682856,3134.2,3133.1,4.12526203]
[1767817812993,0.90682856,3134.2,3132.9,1.77254451]
[1767817813287,0.90682856,3134.0,3132.9,1.77254451]
[1767817813593,0.90682856,3134.0,3132.9,4.96441272]
[1767817813757,0.90682856,3133.8,3132.9,4.12741272]
[1767817814081,0.90682856,3133.8,3132.9,8.15634351]
[1767817814288,1.04784457,3134.1,3133.0,0.93354451]
[1767817814465,4.09745747,3134.2,3133.9,0.00100101]
[1767817814666,0.90682856,3134.1,3133.9,0.00100101]
[1767817815267,4.09759414,3134.1,3133.9,0.00100101]
[1767817815588,3.19066086,3134.2,3133.9,0.00100101]
[1767817815885,3.19022897,3134.6,3133.9,0.00100101]
[1767817816088,4.45702296,3134.7,3133.9,0.93454552]
[1767817816291,1.26690477,3134.7,3133.9,0.93454552]
[1767817816460,4.45703704,3134.7,3133.9,0.93454552]
[1767817816974,3.19005631,3134.8,3133.9,0.93454552]
[1767817817177,0.001,3134.9,3133.9,0.93454552]
[1767817817987,0.001,3134.9,3134.1,0.93354451]
[1767817818171,0.001,3134.9,3134.3,0.93354451]
[1767817818890,0.001,3134.9,3134.3,1.11059896]
[1767817819882,0.001,3134.9,3134.4,0.93354451]
[1767817820761,0.001,3134.9,3134.4,0.94508091]
[1767817821397,0.001,3134.9,3134.4,0.93354451]
[1767817822975,0.001,3134.9,3134.4,4.12390996]
[1767817823193,0.001,3134.9,3134.5,1.68269095]
[1767817824197,0.001,3134.9,3134.6,0.93354451]
[1767817825099,0.001,3134.9,3134.4,0.93354451]
[1767817825270,0.001,3134.9,3134.4,4.12394726]
[1767817825673,0.001,3134.9,3134.4,0.93354451]
[1767817825871,0.001,3134.9,3134.4,4.63773054]
[1767817826200,0.001,3134.9,3134.4,1.44735258]
[1767817826376,0.001,3134.9,3134.3,0.17705445]
[1767817826696,0.001,3134.9,3133.8,0.837]
[1767817826697,0.90782856,3134.9,3133.8,0.837]
[1767817827070,0.001,3134.6,3133.8,0.837]
[1767817828291,0.001,3134.6,3133.8,4.02797379]
[1767817829697,0.90782856,3134.6,3133.0,3.19178051]
[1767817829901,0.90682856,3134.4,3133.1,3.19165848]
[1767817830068,0.90682856,3134.4,3133.0,0.93354451]
[1767817830069,0.90682856,3134.4,3133.2,3.1915968]
[1767817830271,0.90682856,3134.2,3133.1,3.19172704]
[1767817830989,0.90682856,3134.2,3133.0,0.93354451]
[1767817831197,0.90682856,3134.2,3133.0,4.12533366]
[1767817831497,0.90682856,3134.0,3133.0,7.31716257]
[1767817831877,0.90682856,3134.0,3133.0,4.12533366]
[1767817832079,0.90682856,3134.0,3133.0,3.19178915]
[1767817832490,0.93030285,3133.9,3133.0,3.19178915]
[1767817832733,0.93030285,3133.9,3133.0,6.38361806]
[1767817832994,0.93030285,3133.9,3133.0,6.90472154]
[1767817833588,0.93030285,3133.9,3133.0,7.83744605]
[1767817834976,0.93030285,3133.9,3133.1,0.93272451]
[1767817836399,4.12123863,3133.9,3133.0,3.71289263]
[1767817836713,4.12123863,3133.9,3133.1,4.02869572]
[1767817837398,0.93030285,3133.9,3133.1,4.96142023]
[1767817837724,0.93030285,3133.9,3133.1,8.15314727]
[1767817837889,0.93030285,3133.9,3133.2,0.93272451]
[1767817838814,0.93030285,3133.9,3133.3,3.19152331]
[1767817838984,1.41528804,3133.9,3133.3,3.19152331]
[1767817839308,1.41528804,3133.9,3133.4,0.002]
[1767817840416,0.48498519,3133.9,3133.4,0.002]
[1767817843420,4.60621139,3133.9,3133.4,0.002]
[1767817844322,1.41528804,3133.9,3133.4,0.002]
[1767817851732,0.48498519,3133.9,3133.4,0.93472451]
[1767817851903,0.001,3133.6,3133.4,0.93472451]
[1767817852509,0.001,3133.6,3133.4,0.002]
[1767817857411,0.93130285,3133.6,3132.5,0.93472451]
[1767817857758,0.93130285,3133.6,3132.6,3.19222082]
[1767817858149,0.93130285,3133.6,3132.5,4.12700037]
[1767817858312,0.93130285,3133.6,3132.5,0.002]
[1767817858511,0.93130285,3133.6,3132.4,0.837]
[1767817858713,0.93030285,3133.4,3132.4,0.837]
[1767817858914,0.93030285,3133.2,3132.4,0.837]
[1767817859121,0.93030285,3133.2,3132.3,0.839]
[1767817859322,0.93030285,3133.2,3132.3,4.03153775]
[1767817859521,0.93030285,3133.2,3132.4,3.19243563]
[1767817859923,0.93030285,3133.2,3132.4,4.12516014]
[1767817860156,0.001,3133.6,3132.6,0.93272451]
[1767817860157,0.93030285,3133.5,3132.6,0.93272451]
[1767817860355,0.93030285,3134.1,3133.1,0.93272451]
[1767817860555,0.93030285,3134.1,3133.2,0.93272451]
[1767817860763,4.12101635,3134.1,3133.3,3.19152331]
[1767817860968,4.12102848,3134.1,3133.3,3.19152331]
[1767817861133,8.12660968,3134.1,3133.2,0.93272451]
[1767817861757,4.93588405,3134.1,3133.2,0.93272451]
[1767817862126,4.93588405,3134.1,3133.2,4.1243243]
[1767817862820,4.93588405,3134.1,3133.2,0.93272451]
[1767817863838,1.74515842,3134.1,3133.2,4.12433391]
[1767817864050,0.93030285,3134.1,3133.3,0.90695144]
[1767817864245,0.93030285,3134.1,3133.5,0.002]
[1767817864756,0.001,3133.8,3133.5,0.002]
[1767817865265,0.001,3133.8,3133.5,0.90895144]
[1767817866071,0.001,3134.6,3133.7,0.90695144]
[1767817866275,0.001,3134.6,3133.9,0.90695144]
[1767817866950,0.001,3134.6,3134.0,0.90695144]
[1767817868047,0.001,3134.6,3134.1,0.837]
[1767817868255,0.93968422,3135.4,3134.4,0.90695144]
[1767817868791,0.001,3135.5,3134.4,0.90695144]
[1767817868984,3.19030271,3135.5,3134.6,0.90695144]
[1767817869152,3.19030271,3135.5,3134.8,0.90695144]
[1767817869153,3.92221117,3135.5,3134.8,0.90695144]
[1767817870343,0.73290846,3135.5,3134.8,0.90695144]
[1767817870583,0.001,3135.5,3134.8,0.90695144]
[1767817871070,0.001,3135.8,3135.3,0.90695144]
[1767817872951,0.001,3135.8,3135.4,3.18938572]
[1767817873269,0.001,3135.8,3135.4,4.09633716]
[1767817874186,0.94068422,3136.8,3135.8,0.90695144]
[1767817874386,0.001,3136.8,3136.0,0.90695144]
[1767817874563,0.41385332,3136.8,3136.0,0.90695144]
[1767817875178,3.60184633,3136.8,3136.0,4.095688]
[1767817875380,0.001,3137.3,3136.5,0.90695144]
[1767817875582,4.12724,3137.2,3136.3,0.837]
[1767817875784,0.93968422,3137.2,3136.3,0.837]
[1767817875987,1.67123903,3137.2,3136.3,1.74395144]
[1767817876177,0.93968422,3137.2,3136.3,1.74395144]
[1767817876486,3.18849261,3137.3,3136.4,0.90695144]
[1767817876882,7.31566944,3137.3,3136.4,0.90695144]
[1767817877086,4.12817683,3137.3,3136.4,0.90695144]
[1767817877295,0.73155586,3137.2,3136.4,0.90695144]
[1767817878193,0.73155586,3137.2,3136.4,4.09530465]
[1767817878804,0.73155586,3137.2,3136.5,0.90695144]
[1767817878953,0.30962114,3138.4,3136.4,6.37672204]
[1767817878954,0.93968422,3138.0,3137.1,3.18765739]
[1767817879158,0.93968422,3138.0,3137.1,4.09460883]
[1767817879358,0.93968422,3138.3,3137.2,0.90695144]
[1767817879862,4.12618855,3138.3,3137.2,0.90695144]
[1767817880257,0.93968422,3138.3,3137.2,0.90695144]
[1767817880462,4.12615136,3138.3,3137.2,0.90695144]
[1767817880882,3.18657494,3138.2,3137.2,0.90695144]
[1767817881083,4.12615181,3138.3,3137.3,3.18745418]
[1767817881281,0.93968422,3138.3,3137.4,0.90695144]
[1767817881479,0.93968422,3138.3,3137.4,2.47213742]
[1767817882405,0.93968422,3138.2,3137.1,0.90695144]
[1767817882578,0.93968422,3138.2,3137.2,4.93142473]
[1767817883088,4.12631889,3138.2,3137.2,1.74395144]
[1767817883804,0.93968422,3138.1,3137.2,4.93150442]
[1767817884593,0.93968422,3138.1,3137.2,8.1190602]
[1767817884803,0.41263189,3138.0,3137.2,8.1190602]
[1767817885319,0.41263189,3138.0,3137.2,4.93150442]
[1767817885606,4.12633351,3138.1,3137.2,4.93150442]
[1767817887521,0.93968422,3138.1,3137.2,4.93150442]
[1767817887680,4.1263327,3138.1,3137.3,0.90695144]
[1767817887999,0.93968422,3138.0,3136.8,1.74295144]
[1767817888206,0.93968422,3137.8,3136.9,3.18780647]
[1767817888402,0.93968422,3137.8,3136.8,1.74295144]
[1767817888576,0.93968422,3137.8,3136.8,4.93084467]
[1767817888974,0.93968422,3137.8,3136.9,0.836]
[1767817889205,0.93968422,3137.8,3137.1,0.002]
[1767817889405,0.93968422,3137.8,3136.7,0.90695144]
[1767817889406,0.16709823,3137.7,3136.7,0.90695144]
[1767817889579,4.12749348,3138.0,3136.7,0.90695144]
[1767817889779,7.31430274,3138.0,3136.7,0.90695144]
[1767817890077,7.31430274,3138.0,3136.8,0.81192526]
[1767817890078,0.93968422,3137.8,3136.8,0.81192526]
[1767817890290,0.93968422,3137.8,3136.8,0.836]
[1767817890986,0.93968422,3137.8,3136.8,1.74295144]
[1767817891309,6.37409566,3137.7,3136.8,1.74295144]
[1767817891514,3.18704783,3137.7,3136.8,1.74295144]
[1767817891682,3.99156202,3137.7,3136.8,1.74295144]
[1767817892183,0.9486652,3137.5,3135.7,3.18904646]
[1767817892388,0.9486652,3137.5,3136.5,0.97407016]
[1767817892677,0.836,3137.4,3136.5,0.97407016]
[1767817893282,3.18745418,3137.3,3136.3,3.18843499]
[1767817893481,3.18745418,3137.3,3136.3,4.16250515]
[1767817893698,0.49721194,3137.2,3136.3,4.16250515]
[1767817893902,1.44587714,3137.2,3136.3,0.97407016]
[1767817895415,1.44587714,3137.2,3136.4,3.18836883]
[1767817895593,4.63345851,3137.2,3136.3,4.16253379]
[1767817895915,7.82103988,3137.2,3136.3,0.97407016]
[1767817896119,0.78210399,3137.1,3136.3,4.16253124]
[1767817896503,0.78210399,3137.1,3136.3,0.97407016]
[1767817896703,1.73076919,3137.1,3136.2,3.18856159]
[1767817897502,4.91846741,3137.1,3136.2,3.18856159]
[1767817899198,4.91846741,3137.1,3136.2,4.16263175]
[1767817899392,1.73076919,3137.1,3136.2,4.16263175]
[1767817899598,1.73076919,3137.1,3136.3,0.97407016]
[1767817900621,4.13609091,3137.4,3136.3,0.97407016]
[1767817900822,6.37490836,3137.3,3136.6,0.002]
[1767817901204,7.32357356,3137.3,3136.6,0.002]
[1767817901626,3.18765739,3137.1,3136.6,0.002]
[1767817902919,4.13625278,3137.2,3136.6,0.002]
[1767817903120,4.95222348,3137.2,3136.6,0.002]
[1767817908404,0.9486652,3137.1,3136.6,0.002]
[1767817909536,0.8159707,3137.2,3136.6,0.97607016]
[1767817909915,4.00355437,3137.2,3136.6,0.97607016]
[1767817910117,0.49522196,3137.1,3136.6,0.97607016]
[1767817910526,3.68289291,3137.1,3136.6,0.97607016]
[1767817910917,3.68289291,3137.1,3136.6,0.002]
[1767817911534,0.49522196,3137.1,3136.6,0.002]
[1767817912005,3.6828897,3137.1,3136.6,0.002]
[1767817912205,4.6315549,3137.1,3136.6,0.002]
[1767817912401,0.9486652,3137.0,3136.6,0.002]
[1767817913051,0.001,3138.0,3136.6,0.002]
[1767817913228,0.001,3138.0,3136.6,0.97607016]
[1767817913229,0.9486652,3137.8,3136.6,0.97607016]
[1767817913432,0.9486652,3137.8,3136.8,0.97407016]
[1767817914011,0.9486652,3137.8,3136.6,0.002]
[1767817914210,0.9486652,3137.8,3136.6,0.97607016]
[1767817914426,7.32323224,3138.0,3136.6,0.97607016]
[1767817914628,0.9486652,3137.9,3136.6,0.97607016]
[1767817914827,4.13561146,3137.8,3136.8,0.97407016]
[1767817916031,0.9486652,3137.7,3136.8,0.97407016]
[1767817916643,0.9486652,3137.7,3136.6,0.97607016]
[1767817916938,0.9486652,3137.5,3136.0,0.97407016]
[1767817917234,0.9486652,3137.3,3136.0,0.97407016]
[1767817917638,0.9486652,3137.3,3135.8,1.81007016]
[1767817917825,0.9486652,3137.2,3135.4,0.97407016]
[1767817918005,0.9486652,3137.2,3135.5,0.97407016]
[1767817918744,0.9486652,3137.0,3135.5,4.16334651]
[1767817918940,0.9486652,3136.8,3135.5,4.1633279]
[1767817919144,0.836,3136.7,3135.6,0.97407016]
[1767817919349,1.7846652,3136.7,3135.7,1.39295551]
[1767817919823,0.9486652,3136.6,3135.7,1.39295551]
[1767817920329,0.9486652,3137.0,3135.8,0.97407016]
[1767817920649,3.18745418,3137.3,3136.0,0.97407016]
[1767817920846,3.18735258,3137.4,3136.3,0.97407016]
[1767817921034,3.18735258,3137.4,3136.5,0.97407016]
[1767817921222,6.37472751,3137.4,3136.5,0.97407016]
[1767817921427,0.9486652,3137.3,3136.4,0.41626423]
[1767817921616,0.9486652,3137.3,3136.0,1.81007016]
[1767817921820,0.9486652,3137.2,3136.1,0.18100702]
[1767817922643,0.9486652,3137.2,3136.1,4.3678542]
[1767817923045,7.36178201,3137.1,3136.1,1.17919655]
[1767817923242,7.36178201,3137.1,3136.1,4.36783167]
[1767817923443,0.98646723,3137.0,3136.1,4.36783167]
[1767817923646,0.98646723,3137.0,3136.2,0.52038317]
[1767817925250,0.98646723,3136.8,3136.4,0.002]
[1767817927115,0.98646723,3136.6,3136.0,0.002]
[1767817928353,0.837,3137.1,3136.2,0.99719054]
[1767817928557,0.837,3137.1,3136.3,0.99818953]
[1767817928852,0.98646723,3137.3,3136.3,0.99818953]
[1767817929152,3.18755578,3137.2,3136.3,0.99818953]
[1767817929450,3.18755578,3137.2,3135.6,0.92406855]
[1767817929451,0.99850896,3137.1,3135.6,0.92406855]
[1767817930653,0.99850896,3137.1,3135.6,4.1132446]
[1767817930824,0.99850896,3136.9,3135.6,4.1132446]
[1767817931025,0.99850896,3136.7,3135.6,4.1132446]
[1767817931426,3.18816552,3136.6,3135.6,4.1132446]
[1767817931751,6.37633104,3136.6,3135.6,4.1132446]
[1767817931951,6.37633104,3136.6,3135.6,0.92406855]
[1767817932157,0.737484,3136.5,3135.6,0.92406855]
[1767817933555,6.37694098,3136.3,3135.4,0.92406855]
[1767817933934,3.18847049,3136.3,3135.4,0.92406855]
[1767817934532,4.1869154,3136.4,3135.4,0.92406855]
[1767817934732,4.1869154,3136.4,3135.5,0.92406855]
[1767817935061,7.37532184,3136.4,3135.5,0.92406855]
[1767817936465,7.37532184,3136.4,3135.5,4.11334303]
[1767817936662,4.1869154,3136.4,3135.6,0.92406855]
[1767817936834,7.37532184,3136.4,3135.6,0.92406855]
[1767817937151,8.18660242,3136.4,3135.6,0.92406855]
[1767817937353,8.18660242,3136.4,3135.7,0.002]
[1767817938066,0.001,3136.5,3135.8,0.92406855]
[1767817938486,6.37490836,3137.3,3136.4,0.92406855]
[1767817938775,0.99850896,3137.2,3135.8,0.92406855]
[1767817939335,0.99850896,3137.0,3135.8,0.92406855]
[1767817939764,6.37572124,3136.9,3135.8,0.92406855]
[1767817939964,6.37572124,3136.9,3135.9,0.92406855]
[1767817940640,0.99850896,3136.8,3135.9,0.92406855]
[1767817941580,0.99850896,3136.8,3135.7,0.92606855]
[1767817941782,7.37484,3136.6,3135.7,0.92606855]
[1767817941950,0.99850896,3136.5,3135.7,0.002]
[1767817942848,1.83550896,3136.5,3135.7,0.002]
[1767817943972,6.37673766,3136.4,3135.7,0.002]
[1767817944884,6.37673766,3136.4,3134.8,0.002]
[1767817944885,0.99850896,3136.3,3135.0,0.92007864]
[1767817945085,0.99850896,3136.2,3135.1,0.92406855]
[1767817945292,0.837,3136.2,3135.2,0.92406855]
[1767817945580,1.65822466,3136.3,3135.3,0.92406855]
[1767817946164,6.3771443,3136.2,3135.3,0.92406855]
[1767817946365,7.1806812,3136.2,3135.3,0.92406855]
[1767817950391,7.1806812,3136.2,3135.5,0.92406855]
[1767817950786,7.1806812,3136.2,3135.3,0.002]
[1767817950787,0.99850896,3136.1,3135.3,0.002]
[1767817951350,0.99850896,3135.9,3135.3,0.002]
[1767817951575,8.21346672,3135.8,3135.3,0.002]
[1767817952402,0.96596576,3135.6,3134.8,0.92998345]
[1767817952984,0.96596576,3135.6,3134.8,0.002]
[1767817953780,7.215568,3135.5,3134.8,0.002]
[1767817953965,0.81815338,3135.4,3134.8,0.002]
[1767817955480,1.78411914,3135.4,3134.8,0.00100101]
[1767817955679,6.37897488,3135.3,3134.8,0.00100101]
[1767817956186,7.34494064,3135.3,3134.8,0.00100101]
[1767817956382,0.96596576,3135.2,3134.8,0.00100101]
[1767817956721,0.73449406,3135.1,3134.3,0.9269885]
[1767817957819,3.18979266,3135.0,3134.3,0.9269885]
[1767817959008,6.37958532,3135.0,3134.3,0.9269885]
[1767817959207,3.18979266,3135.0,3134.3,0.9269885]
[1767817959773,3.9242321,3135.1,3134.3,0.9269885]
[1767817960003,3.9242321,3135.1,3134.4,0.92798345]
[1767817960901,7.11397014,3135.1,3134.4,0.92798345]
[1767817961211,0.71139701,3135.0,3134.4,0.92798345]
[1767817962112,3.18973804,3135.1,3134.4,0.92798345]
[1767817962315,4.00756506,3135.4,3134.5,0.92798345]
[1767817962617,0.837,3135.7,3134.8,0.92798345]
[1767817963215,0.96596576,3135.6,3134.8,0.76998345]
[1767817963520,1.14626234,3135.5,3134.4,0.92798345]
[1767817964086,0.96596576,3135.3,3134.4,0.92798345]
[1767817966327,7.34514412,3135.2,3134.4,0.92798345]
[1767817967338,3.36958058,3135.5,3134.5,0.92798345]
[1767817967625,3.189284,3135.5,3134.5,0.92798345]
[1767817967826,3.18897888,3135.8,3134.5,0.92798345]
[1767817968125,6.37795776,3135.8,3134.5,0.92798345]
[1767817968327,7.34433034,3135.6,3134.6,0.92798345]
[1767817968632,0.96596576,3135.5,3134.6,0.92798345]
[1767817970722,3.18938572,3135.4,3134.7,0.92698446]
[1767817972131,6.37843224,3135.6,3134.7,0.92698446]
[1767817973627,3.18921612,3135.6,3134.8,0.92798345]
[1767817974215,0.001,3135.1,3134.8,0.92798345]
[1767817974423,0.001,3135.1,3134.9,0.92798345]
[1767817975941,0.001,3135.1,3134.1,0.92998345]
[1767817975942,0.07417825,3134.9,3134.1,0.92998345]
[1767817977236,3.26413457,3134.9,3134.1,0.92998345]
[1767817979217,0.96596576,3134.8,3134.0,0.002]
[1767817979422,0.96596576,3134.8,3133.6,0.92798345]
[1767817979625,0.96596576,3134.6,3133.6,0.92798345]
[1767817980315,0.96596576,3134.4,3133.6,0.92798345]
[1767817980845,3.19030148,3134.5,3133.7,0.92798345]
[1767817981055,0.07417825,3134.9,3133.7,0.92798345]
[1767817981056,4.15596193,3134.8,3133.7,0.92798345]
[1767817981339,0.00062139,3134.9,3134.5,0.92698446]
[1767817981510,0.96596576,3135.7,3134.5,0.77014488]
[1767817981710,6.72727952,3135.8,3135.0,0.92798345]
[1767817981711,0.18029658,3135.8,3135.0,0.92798345]
[1767817982021,0.001,3138.0,3135.0,0.92798345]
[1767817982022,6.37731108,3136.2,3135.0,0.92798345]
[1767817982216,0.91812862,3136.1,3135.0,0.92798345]
[1767817982413,3.18877551,3136.0,3135.1,0.99107083]
[1767817982615,0.91812862,3136.1,3135.1,0.99107083]
[1767817982987,3.18868152,3136.1,3135.1,0.99107083]
[1767817983127,3.18868152,3136.1,3135.2,0.99107083]
[1767817983328,6.37736304,3136.1,3135.2,0.99107083]
[1767817984239,3.18868152,3136.1,3135.2,0.99107083]
[1767817984539,6.37736304,3136.1,3135.2,0.99107083]
[1767817985341,3.18868152,3136.1,3135.2,0.99107083]
[1767817985545,0.72954076,3136.1,3135.2,0.99107083]
[1767817985716,3.18859341,3136.2,3135.3,0.99107083]
[1767817986118,4.10672203,3136.2,3135.3,0.99107083]
[1767817986318,0.001,3135.8,3135.3,0.99107083]
[1767817986958,0.001,3135.8,3135.4,0.99107083]
[1767817987116,0.91812862,3136.4,3135.7,0.99007184]
[1767817987421,0.91812862,3136.3,3135.5,0.99107083]
[1767817989020,3.18857215,3136.2,3135.5,0.99107083]
[1767817990045,0.91812862,3136.3,3135.6,0.99107083]
[1767817990860,0.91812862,3136.5,3135.6,0.99107083]
[1767817991069,3.18790478,3136.9,3135.8,0.99107083]
[1767817991356,4.94286106,3137.1,3135.8,0.99107083]
[1767817991526,0.96655476,3137.0,3135.8,0.99107083]
[1767817991728,0.49912872,3136.9,3135.9,0.96379791]
[1767817993272,0.49912872,3136.9,3136.1,0.96379791]
[1767817994159,1.46568348,3136.9,3136.1,0.96379791]
[1767817995855,1.46568348,3136.9,3136.2,0.96379791]
[1767817998036,0.49912872,3136.9,3136.2,0.96379791]
[1767817998155,4.15427877,3137.1,3136.3,0.96379791]
[1767817998593,4.15427877,3137.1,3135.7,4.02605385]
[1767817998594,0.96655476,3137.0,3135.3,0.96379791]
[1767817998791,0.96655476,3136.5,3135.6,0.96579791]
[1767817999298,0.96655476,3136.5,3135.7,0.96379791]
[1767817999761,3.18836883,3136.4,3135.7,0.96379791]
[1767817999967,0.41549236,3136.3,3135.7,0.96379791]
[1767818002718,3.6039957,3136.3,3135.7,0.96379791]
[1767818002919,0.96655476,3136.1,3135.3,0.002]
[1767818003072,0.96655476,3136.1,3134.9,0.96379791]
[1767818003269,0.96655476,3135.9,3134.9,0.96379791]
[1767818003687,0.96655476,3135.9,3135.0,0.96379791]
[1767818004215,4.15551431,3135.9,3135.1,0.96379791]
[1767818004765,0.96655476,3136.1,3135.1,0.96379791]
[1767818004971,4.02567086,3136.2,3135.1,0.96379791]
[1767818005182,0.96655476,3136.0,3135.1,0.96379791]
[1767818005998,3.18887719,3135.9,3135.1,0.96379791]
[1767818006307,0.5407718,3136.1,3135.2,0.96379791]
[1767818006508,4.15517781,3136.2,3135.2,0.96379791]
[1767818008403,4.15517781,3136.2,3135.4,0.96379791]
[1767818009419,0.96655476,3136.1,3135.4,0.96379791]
[1767818010626,4.15526709,3136.1,3135.4,0.96379791]
[1767818010806,4.1552497,3136.1,3135.4,0.96379791]
[1767818011118,4.97332843,3136.1,3135.4,0.96379791]
[1767818011422,1.78463349,3136.1,3135.4,0.96379791]
[1767818011719,0.001,3136.0,3135.4,0.96379791]
[1767818013918,0.001,3136.0,3135.5,0.96564685]
[1767818015297,0.001,3136.6,3135.8,0.96564685]
[1767818015618,0.93486283,3136.5,3135.8,0.837]
[1767818015822,0.93486283,3136.5,3135.9,0.96564685]
[1767818016026,0.93486283,3136.5,3136.0,3.18877551]
[1767818016195,0.93486283,3136.5,3136.0,4.00680253]
[1767818016514,0.93486283,3136.5,3136.0,7.19557804]
[1767818016715,0.001,3136.6,3136.1,0.96564685]
[1767818018032,0.001,3136.6,3136.3,0.96564685]
[1767818021426,0.001,3136.6,3136.4,0.96564685]
[1767818022736,3.18745031,3137.4,3136.4,0.96564685]
[1767818022737,0.93486283,3137.7,3136.6,0.96564685]
[1767818022898,0.93486283,3137.7,3136.4,7.11099125]
[1767818022899,0.93486283,3137.7,3136.8,0.96564685]
[1767818023607,0.001,3138.0,3136.8,0.96564685]
[1767818024007,0.001,3139.0,3137.7,0.96564685]
[1767818024008,4.12069226,3138.9,3137.7,0.96564685]
[1767818024206,4.12069226,3138.9,3137.9,4.15241193]
[1767818024418,0.41216923,3138.8,3138.0,0.96564685]
[1767818024627,0.41216923,3138.8,3137.8,0.837]
[1767818024628,0.93486283,3138.8,3137.2,0.96564685]
[1767818024804,0.93486283,3138.8,3137.7,3.18704441]
[1767818025006,0.93486283,3138.8,3137.8,0.836]
[1767818025243,1.6655182,3138.7,3137.9,0.96564685]
[1767818025406,0.73065537,3138.7,3138.0,0.96564685]
[1767818025607,0.001,3139.0,3138.0,0.96564685]
[1767818025808,3.18675362,3139.0,3138.0,0.96564685]
[1767818026034,0.001,3139.0,3138.0,0.96564685]
[1767818026406,0.001,3139.0,3138.2,0.96564685]
[1767818026616,0.41215145,3138.9,3138.2,0.96564685]
[1767818029029,0.41215145,3138.9,3138.2,4.15217979]
[1767818029217,0.41215145,3138.9,3138.2,0.96564685]
[1767818029751,0.41215145,3138.9,3138.3,0.93780291]
[1767818030050,0.001,3139.0,3138.3,0.93780291]
[1767818031105,0.97404119,3139.0,3137.9,0.93780291]
[1767818031310,0.97404119,3139.0,3137.8,1.77380291]
[1767818031549,0.97404119,3139.0,3137.8,4.96066554]
[1767818031864,0.97404119,3139.0,3137.8,1.77380291]
[1767818032070,0.97304119,3138.8,3137.8,1.77380291]
[1767818032459,0.97304119,3138.8,3137.9,3.18678818]
[1767818032862,0.97304119,3138.7,3137.9,3.18678818]
[1767818033069,0.97304119,3138.7,3137.8,4.96073284]
[1767818033249,0.97304119,3138.7,3136.7,0.93780291]
[1767818033457,0.97304119,3138.5,3137.4,0.93780291]
[1767818033786,0.97304119,3138.5,3137.5,4.02324677]
[1767818034277,0.97304119,3138.5,3137.6,3.18712786]
[1767818034588,0.97304119,3138.5,3137.6,4.12493077]
[1767818034754,0.17075344,3138.4,3137.6,4.12493077]
[1767818034950,0.97304119,3138.3,3137.6,0.93780291]
[1767818035548,0.17075344,3138.4,3137.7,0.93780291]
[1767818035867,0.97304119,3138.6,3137.3,0.93780291]
[1767818036056,0.97304119,3138.6,3137.4,4.96113961]
[1767818036253,0.97304119,3138.6,3137.5,3.18724983]
[1767818036477,0.97304119,3138.6,3137.4,4.02332479]
[1767818036655,0.97304119,3138.4,3137.4,4.02332479]
[1767818036854,0.97304119,3138.3,3137.5,3.18721978]
[1767818037039,0.97304119,3138.3,3136.7,0.93780291]
[1767818037246,0.97304119,3138.3,3137.2,3.18749437]
[1767818037457,0.97304119,3138.3,3137.3,0.836]
[1767818037683,0.97304119,3138.1,3137.3,0.836]
[1767818037877,0.97304119,3138.1,3137.4,3.18732682]
[1767818038287,0.41594193,3138.2,3137.5,0.93780291]
[1767818038980,3.60253901,3138.2,3137.5,0.93780291]
[1767818039194,3.60253901,3138.2,3122.5,14.61327987]
[1767818039195,0.97304119,3138.1,3136.1,0.93780291]
[1767818039399,0.97304119,3137.9,3137.1,3.18759991]
[1767818039602,0.97304119,3137.9,3137.1,4.12540282]
[1767818040174,0.97304119,3137.9,3137.2,3.18752019]
[1767818040702,0.97304119,3137.9,3137.1,4.12539318]
[1767818041492,4.15991772,3137.9,3137.1,0.93780291]
[1767818041693,0.49360478,3137.8,3137.1,4.12544188]
[1767818042388,0.97304119,3137.9,3137.1,4.12544188]
[1767818042591,0.97304119,3137.9,3137.1,0.93780291]
[1767818042765,4.15989207,3137.9,3137.1,0.93780291]
[1767818042961,4.15989207,3137.9,3137.1,4.12544535]
[1767818043160,0.97304119,3137.9,3137.1,4.12544535]
[1767818043390,0.41598329,3137.8,3137.1,4.12544535]
[1767818043714,0.95497163,3137.7,3136.8,1.80616858]
[1767818044007,0.95497163,3137.7,3136.8,4.99412549]
[1767818044201,0.95497163,3137.7,3136.9,3.18782773]
[1767818045102,0.95497163,3137.7,3136.8,4.1580972]
[1767818045395,0.95497163,3137.6,3136.5,4.99436436]
[1767818045598,0.95497163,3137.4,3136.5,4.99441951]
[1767818045778,0.95497163,3137.4,3136.3,3.1884507]
[1767818045779,0.95497163,3137.4,3136.3,1.80616858]
[1767818046098,0.95497163,3137.4,3136.3,4.99463726]
[1767818046296,0.95497163,3137.4,3136.3,0.97016858]
[1767818046598,0.19099433,3137.5,3136.7,0.97016858]
[1767818046766,0.19099433,3137.5,3136.9,0.97016858]
[1767818046972,4.14181633,3137.9,3137.4,0.002]
[1767818047396,7.32866782,3137.9,3137.4,0.002]